bitfinex-derivatives/quotes_SOLF0:USTF0_20241107
["timestamp","ask_amount","ask_price","bid_price","bid_amount"]
[1731022926356,2.553,195.71,195.67,7.86139539]
[1731022926655,5.073,195.71,195.67,7.86139539]
[1731022927350,5.073,195.71,195.58,7.629]
[1731022927351,2.52,195.71,195.69,2.553]
[1731022927954,5.0729,195.71,195.67,2.5533]
[1731022928254,11.80396904,195.71,195.66,7.86139539]
[1731022928453,5.0729,195.71,195.68,2.5532]
[1731022929749,2.52,195.71,195.68,2.5532]
[1731022930651,6.73106904,195.72,195.7,7.86139539]
[1731022930850,6.73106904,195.78,195.7,7.86139539]
[1731022931058,2.5518,195.8,195.76,7.86139539]
[1731022931357,2.4166,195.81,195.77,10.41339539]
[1731022931551,9.14766904,195.81,195.77,10.41339539]
[1731022931853,7.86139539,195.83,195.77,10.41339539]
[1731022932247,10.41269539,195.83,195.79,7.86139539]
[1731022932653,2.5513,195.83,195.79,7.86139539]
[1731022933058,9.25106904,195.86,195.81,7.86139539]
[1731022933255,17.11246443,195.86,195.82,7.86139539]
[1731022933847,6.73106904,195.85,195.82,7.86139539]
[1731022934455,3.7174,195.91,195.84,7.86139539]
[1731022934654,6.73106904,195.85,195.84,7.86139539]
[1731022934850,10.38139539,195.89,195.84,7.86139539]
[1731022934851,2.5508,195.87,195.84,7.86139539]
[1731022935054,10.38139539,195.89,195.84,7.86139539]
[1731022935055,6.73106904,195.88,195.84,7.86139539]
[1731022935364,10.38139539,195.89,195.84,7.86139539]
[1731022935554,12.93189539,195.89,195.84,7.86139539]
[1731022936256,12.93189539,195.89,195.84,10.41249539]
[1731022937163,2.5507,195.88,195.84,7.86139539]
[1731022941262,10.38139539,195.89,195.84,7.86139539]
[1731022941464,7.86139539,195.84,195.77,2.52]
[1731022941661,7.86139539,195.84,195.79,7.86139539]
[1731022941864,7.86139539,195.84,195.81,7.86139539]
[1731022942063,7.86139539,195.86,195.81,7.86139539]
[1731022942657,2.5512,195.84,195.81,7.86139539]
[1731022942861,2.52,195.89,195.81,7.86139539]
[1731022943163,7.86139539,195.84,195.8,7.86139539]
[1731022943559,2.5514,195.83,195.8,7.86139539]
[1731022943759,7.86139539,195.84,195.8,7.86139539]
[1731022944164,2.5513,195.83,195.8,7.86139539]
[1731022944565,2.5513,195.83,195.78,7.86139539]
[1731022944779,2.5513,195.83,195.78,10.41319539]
[1731022947969,2.5513,195.83,195.8,7.86139539]
[1731022948559,2.5513,195.83,195.75,2.5522]
[1731022948560,2.5516,195.81,195.75,2.5522]
[1731022948868,7.86139539,195.8,195.75,7.86139539]
[1731022949170,7.86139539,195.76,195.71,65.70929933]
[1731022949562,7.86139539,195.76,195.72,7.86139539]
[1731022949765,7.86139539,195.78,195.72,7.86139539]
[1731022950368,2.5523,195.75,195.72,7.86139539]
[1731022952073,1.1647,195.79,195.71,68.26209933]
[1731022952074,2.5525,195.74,195.71,65.70929933]
[1731022955672,1.1647,195.79,195.67,10.41469539]
[1731022955673,7.86139539,195.73,195.67,10.41469539]
[1731022955872,7.86139539,195.71,195.66,7.86139539]
[1731022956067,7.86139539,195.72,195.67,7.86139539]
[1731022956466,2.5529,195.71,195.67,7.86139539]
[1731022957066,2.5529,195.71,195.67,10.41469539]
[1731022957468,7.86139539,195.71,195.62,2.52]
[1731022957669,2.5531,195.7,195.66,7.86139539]
[1731022958973,1.2606,195.74,195.68,7.86139539]
[1731022959177,7.86139539,195.73,195.68,7.86139539]
[1731022960077,2.5528,195.72,195.68,7.86139539]
[1731022961272,2.5528,195.72,195.67,2.5533]
[1731022961475,7.86139539,195.73,195.68,7.86139539]
[1731022961775,2.5528,195.71,195.68,7.86139539]
[1731022964981,10.41419539,195.71,195.67,2.5533]
[1731022965480,2.553,195.7,195.67,2.5533]
[1731022965676,2.553,195.7,195.66,7.86139539]
[1731022966273,2.553,195.7,195.66,10.41479539]
[1731022966782,1.2606,195.74,195.61,5.02106046]
[1731022966783,10.41459539,195.69,195.61,2.52]
[1731022967082,7.86139539,195.68,195.63,7.86139539]
[1731022967782,10.41469539,195.68,195.63,10.41519539]
[1731022967979,7.86139539,195.68,195.63,10.41519539]
[1731022968190,2.5536,195.66,195.63,7.86139539]
[1731022970083,2.5533,195.68,195.65,7.86139539]
[1731022970984,10.38139539,195.71,195.65,10.41499539]
[1731022970985,2.5532,195.69,195.65,10.41499539]
[1731022972994,10.38139539,195.71,195.65,7.86139539]
[1731022974491,2.5532,195.68,195.65,7.86139539]
[1731022974785,2.5532,195.68,195.64,2.5537]
[1731022976197,2.5532,195.68,195.65,7.86139539]
[1731022978694,2.553,195.7,195.65,10.41489539]
[1731022978898,2.553,195.7,195.67,7.86139539]
[1731022980394,2.52,195.71,195.67,7.86139539]
[1731022980607,2.5531,195.69,195.67,7.86139539]
[1731022980895,2.5531,195.69,195.66,10.41479539]
[1731022981397,9.08569539,195.72,195.66,7.86139539]
[1731022981597,9.08569539,195.72,195.67,2.5534]
[1731022981901,9.08569539,195.72,195.66,7.86139539]
[1731022982200,2.5531,195.7,195.66,10.41489539]
[1731022982793,10.41459539,195.69,195.65,10.41499539]
[1731022982991,7.86139539,195.69,195.65,7.86139539]
[1731022983501,7.86139539,195.69,195.66,2.5534]
[1731022984103,10.41459539,195.69,195.66,2.5534]
[1731022984593,7.86139539,195.69,195.66,2.5534]
[1731022985791,7.86139539,195.69,195.65,7.86139539]
[1731022986196,7.86139539,195.68,195.62,7.86139539]
[1731022986602,7.86139539,195.68,195.62,10.41529539]
[1731022986603,2.5536,195.65,195.62,10.41529539]
[1731022986897,2.5536,195.65,195.62,7.86139539]
[1731022987104,2.5536,195.65,195.62,10.41539539]
[1731022987303,2.5536,195.65,195.62,7.86139539]
[1731022988605,2.5536,195.65,195.6,2.5543]
[1731022988794,10.41519539,195.64,195.6,10.41569539]
[1731022990207,2.5538,195.64,195.6,10.41569539]
[1731022990902,2.5538,195.64,195.6,2.5543]
[1731022991098,2.554,195.63,195.6,10.41569539]
[1731022991604,2.554,195.63,195.6,7.86139539]
[1731022991908,2.5541,195.62,195.58,7.86139539]
[1731022992504,7.86139539,195.62,195.57,65.75646099]
[1731022992801,7.86139539,195.6,195.57,65.75646099]
[1731022993206,2.5545,195.59,195.57,65.75646099]
[1731022994204,2.5545,195.59,195.55,10.41619539]
[1731022994595,7.86139539,195.58,195.47,2.57982864]
[1731022994799,2.5548,195.56,195.53,7.86139539]
[1731022995707,2.555,195.55,195.5,10.41689539]
[1731022996596,2.555,195.55,195.51,2.5553]
[1731022996803,10.41619539,195.56,195.52,7.86139539]
[1731022997407,7.86139539,195.56,195.52,7.86139539]
[1731022997602,2.555,195.55,195.52,7.86139539]
[1731022999005,7.86139539,195.56,195.52,7.86139539]
[1731022999197,2.52,195.59,195.47,65.79073805]
[1731022999400,2.52,195.59,195.56,7.86139539]
[1731022999603,2.52,195.59,195.58,7.86139539]
[1731023000006,2.52,195.59,195.57,7.86139539]
[1731023001203,2.52,195.59,195.47,65.79073805]
[1731023001506,2.52,195.59,195.57,7.86139539]
[1731023002105,2.52,195.59,195.56,2.5547]
[1731023007714,10.38139539,195.59,195.55,2.5549]
[1731023007920,7.86139539,195.58,195.51,2.52]
[1731023008120,7.86139539,195.56,195.52,7.86139539]
[1731023008413,7.86139539,195.56,195.52,2.5553]
[1731023009818,7.86139539,195.55,195.51,2.5554]
[1731023010016,7.86139539,195.53,195.47,65.79073805]
[1731023010214,7.86139539,195.53,195.47,73.65213344]
[1731023010413,2.5554,195.52,195.48,2.5558]
[1731023011016,14.12899539,195.54,195.51,2.5554]
[1731023011208,5.0752,195.54,195.51,2.5554]
[1731023011412,2.52,195.54,195.51,2.5554]
[1731023011614,2.52,195.54,195.53,10.41659539]
[1731023011811,6.74095344,195.6,195.53,10.41659539]
[1731023011812,2.52,195.58,195.53,7.86139539]
[1731023012218,7.86139539,195.59,195.55,7.86139539]
[1731023012434,2.52,195.6,195.56,7.86139539]
[1731023012625,9.11909539,195.61,195.48,2.52]
[1731023012626,1.2577,195.61,195.58,7.86139539]
[1731023012921,14.14039539,195.63,195.59,7.86139539]
[1731023013323,11.62039539,195.63,195.59,7.86139539]
[1731023014116,2.554,195.62,195.59,7.86139539]
[1731023015925,7.86139539,195.61,195.58,2.5545]
[1731023018126,7.86139539,195.59,195.55,7.86139539]
[1731023018326,7.86139539,195.59,195.51,2.52]
[1731023018523,7.86139539,195.59,195.55,10.41619539]
[1731023018916,2.5544,195.6,195.56,7.86139539]
[1731023019123,2.5544,195.6,195.56,10.41619539]
[1731023019625,10.41549539,195.62,195.58,7.86139539]
[1731023022333,2.5542,195.61,195.57,2.5545]
[1731023022632,7.86139539,195.62,195.57,10.41589539]
[1731023023031,10.41549539,195.62,195.57,10.41589539]
[1731023023933,7.86139539,195.62,195.57,7.86139539]
[1731023024135,2.5539,195.63,195.59,7.86139539]
[1731023024337,2.52,195.65,195.61,7.86139539]
[1731023024526,1.2577,195.67,195.63,7.86139539]
[1731023024731,2.5536,195.66,195.63,7.86139539]
[1731023025637,3.7777,195.67,195.64,2.5537]
[1731023025638,1.2577,195.67,195.64,2.5537]
[1731023026132,17.12234883,195.69,195.66,7.86139539]
[1731023026133,6.74095344,195.69,195.66,7.86139539]
[1731023026335,10.38139539,195.72,195.66,7.86139539]
[1731023026533,39.47448867,195.79,195.68,7.86139539]
[1731023026731,10.41389539,195.74,195.68,10.41449539]
[1731023027129,7.86139539,195.74,195.68,10.41449539]
[1731023027324,10.41389539,195.74,195.68,10.41449539]
[1731023027730,7.86139539,195.74,195.7,7.86139539]
[1731023028134,2.5527,195.73,195.68,10.41449539]
[1731023029033,2.5527,195.72,195.68,10.41449539]
[1731023029439,10.41409539,195.72,195.68,10.41449539]
[1731023031637,2.5527,195.72,195.68,10.41449539]
[1731023031935,2.5529,195.71,195.68,7.86139539]
[1731023032340,7.86139539,195.73,195.68,7.86139539]
[1731023032538,2.5527,195.72,195.68,7.86139539]
[1731023034132,2.5528,195.71,195.68,7.86139539]
[1731023034333,7.86139539,195.73,195.68,7.86139539]
[1731023034639,10.41409539,195.73,195.69,7.86139539]
[1731023035230,2.52,195.75,195.71,7.86139539]
[1731023035231,2.5523,195.75,195.71,7.86139539]
[1731023035934,10.41369539,195.75,195.71,7.86139539]
[1731023037335,7.86139539,195.75,195.71,7.86139539]
[1731023037535,7.86139539,195.75,195.65,2.52]
[1731023037536,7.86139539,195.75,195.69,7.86139539]
[1731023037735,2.52,195.76,195.71,7.86139539]
[1731023037736,6.74095344,195.76,195.71,7.86139539]
[1731023037942,35.73498062,195.83,195.74,7.86139539]
[1731023037943,6.74095344,195.82,195.74,7.86139539]
[1731023038143,2.52,195.83,195.77,7.86139539]
[1731023038339,10.38139539,195.83,195.77,7.86139539]
[1731023038538,10.38139539,195.83,195.79,7.86139539]
[1731023039643,7.86139539,195.83,195.79,7.86139539]
[1731023039938,10.38139539,195.84,195.79,7.86139539]
[1731023040331,7.86139539,195.84,195.79,7.86139539]
[1731023040532,2.4627,195.85,195.81,7.86139539]
[1731023041334,2.4627,195.85,195.8,2.5517]
[1731023041744,2.4627,195.85,195.81,2.5515]
[1731023041944,2.551,195.86,195.78,12.25285128]
[1731023042649,2.52,195.87,195.8,12.25285128]
[1731023043154,2.52,195.87,195.82,2.5513]
[1731023043353,2.5506,195.88,195.82,2.5513]
[1731023043549,2.5506,195.88,195.8,12.25285128]
[1731023044645,2.5506,195.88,195.82,2.5514]
[1731023045154,2.5506,195.88,195.8,12.25285128]
[1731023045453,2.5506,195.88,195.83,2.5513]
[1731023045653,6.74095344,195.9,195.84,12.25285128]
[1731023045953,2.5505,195.9,195.84,14.80385128]
[1731023046747,2.5505,195.89,195.84,14.80385128]
[1731023048648,2.52,195.93,195.84,14.80385128]
[1731023048853,2.5504,195.9,195.84,14.80385128]
[1731023049252,2.52,195.93,195.84,14.80385128]
[1731023049253,2.52,195.93,195.84,12.25285128]
[1731023049551,2.52,195.93,195.86,2.5508]
[1731023049552,2.5502,195.91,195.86,2.5508]
[1731023049854,2.52,195.93,195.86,2.5508]
[1731023050451,2.5502,195.92,195.86,2.5508]
[1731023050648,6.74095344,195.94,195.86,12.25285128]
[1731023050843,2.52,195.95,195.89,14.80325128]
[1731023051041,2.52,195.95,195.89,2.5504]
[1731023051246,6.2351,195.97,195.88,12.25285128]
[1731023051648,6.2351,195.97,195.88,14.80345128]
[1731023052347,2.5501,195.93,195.88,14.80345128]
[1731023053651,2.5501,195.93,195.86,2.52]
[1731023053858,2.5502,195.92,195.86,17.32375128]
[1731023054053,2.5502,195.92,195.86,14.80375128]
[1731023054366,18.48795128,195.97,195.86,12.25285128]
[1731023054367,6.66769192,195.96,195.86,12.25285128]
[1731023054550,2.5505,195.89,195.84,2.5511]
[1731023055761,2.52,195.92,195.81,2.52]
[1731023055955,2.52,195.92,195.81,14.77285128]
[1731023056656,2.5508,195.87,195.82,2.5514]
[1731023056857,2.5508,195.87,195.81,14.77285128]
[1731023057160,2.551,195.86,195.81,14.77285128]
[1731023057461,12.25285128,195.91,195.81,12.25285128]
[1731023057858,2.551,195.85,195.81,14.80435128]
[1731023059955,2.4445,195.89,195.79,12.25285128]
[1731023060266,2.5514,195.82,195.78,2.5518]
[1731023060959,14.77285128,195.86,195.74,2.73547]
[1731023061157,12.25285128,195.84,195.74,12.43592128]
[1731023061361,12.25285128,195.84,195.74,0.18307]
[1731023062760,2.552,195.78,195.74,0.18307]
[1731023065862,2.52,195.8,195.74,0.18307]
[1731023066863,2.5522,195.77,195.74,0.18307]
[1731023069558,2.5522,195.77,195.69,2.52]
[1731023069559,7.84815376,195.77,195.69,2.553]
[1731023069863,7.84815376,195.77,195.71,7.84815376]
[1731023070065,2.5524,195.75,195.71,7.84815376]
[1731023070265,7.84815376,195.77,195.71,7.84815376]
[1731023071466,7.84815376,195.75,195.71,7.84815376]
[1731023071965,2.5525,195.74,195.71,7.84815376]
[1731023073373,9.13599712,195.81,195.73,7.84815376]
[1731023073582,9.13599712,195.81,195.66,2.57399325]
[1731023073583,14.54905088,195.87,195.8,7.84815376]
[1731023073872,14.54905088,195.87,195.7,2.78]
[1731023073873,19.77625088,195.87,195.83,7.84815376]
[1731023074060,6.70089712,195.86,195.83,7.84815376]
[1731023074263,19.77625088,195.87,195.83,7.84815376]
[1731023074466,6.70089712,195.86,195.8,2.5516]
[1731023074671,1.2577,195.87,195.85,7.84815376]
[1731023075466,1.2577,195.87,195.75,2.78]
[1731023075670,1.2577,195.87,195.83,12.24731848]
[1731023076274,3.9991,195.88,195.83,12.24731848]
[1731023077372,1.2191,195.88,195.83,12.24731848]
[1731023078175,1.2191,195.88,195.83,14.79851848]
[1731023078580,1.2191,195.88,195.83,12.24731848]
[1731023078871,1.2191,195.88,195.84,2.551]
[1731023079573,1.2191,195.88,195.75,2.78]
[1731023079782,1.2191,195.88,195.82,2.5513]
[1731023082273,3.7697,195.88,195.82,2.5513]
[1731023083881,2.5508,195.87,195.82,2.5513]
[1731023086583,2.5509,195.86,195.79,2.5517]
[1731023086775,1.2191,195.88,195.78,12.24731848]
[1731023087584,2.5511,195.85,195.8,2.5516]
[1731023088584,2.5511,195.85,195.81,2.5515]
[1731023088784,2.5513,195.83,195.78,12.24731848]
[1731023089881,2.5513,195.83,195.79,2.5518]
[1731023090083,6.70089712,195.89,195.83,15.33]
[1731023090386,1.2441,196.13,195.88,12.24731848]
[1731023090587,4.3441,196.13,196.05,12.24731848]
[1731023091087,3.1,196.12,196.05,12.24731848]
[1731023092093,3.1,196.12,196.02,12.24731848]
[1731023092296,3.1,196.12,196.0,12.24731848]
[1731023092297,15.34731848,196.12,196.0,12.24731848]
[1731023092494,15.34731848,196.12,195.96,2.56744016]
[1731023092694,15.34731848,196.12,196.0,12.24731848]
[1731023092886,12.24731848,196.1,196.0,14.79621848]
[1731023093896,2.5479,196.09,196.0,14.79621848]
[1731023095596,2.5479,196.09,196.0,12.24731848]
[1731023095791,2.5479,196.09,196.01,2.5489]
[1731023096295,15.34731848,196.12,196.0,12.24731848]
[1731023096492,3.1,196.11,196.02,2.5487]
[1731023096696,3.1,196.11,196.02,14.79601848]
[1731023097701,2.548,196.09,196.02,14.79601848]
[1731023098596,3.1,196.08,196.02,14.79601848]
[1731023098898,1.2441,196.13,196.02,14.79601848]
[1731023099101,3.1,196.12,196.02,14.79601848]
[1731023099902,2.5479,196.09,196.02,2.5487]
[1731023100405,3.1,196.12,196.01,12.24731848]
[1731023101212,2.5479,196.09,196.03,2.5486]
[1731023102701,3.1,196.08,196.03,2.5486]
[1731023103708,2.5479,196.09,196.03,2.5486]
[1731023103709,3.1,196.07,196.03,2.5486]
[1731023104999,3.1,196.07,195.97,2.54262991]
[1731023105000,3.1,196.07,196.04,12.24731848]
[1731023105320,3.1,196.08,196.05,2.5484]
[1731023105809,13.49141848,196.13,196.04,12.24731848]
[1731023106015,3.1,196.12,196.05,1.27500599]
[1731023106207,3.1,196.12,196.04,12.24731848]
[1731023106404,2.5477,196.11,196.05,1.27501683]
[1731023106603,3.1,196.12,196.04,14.79571848]
[1731023106906,2.5477,196.11,196.05,1.27501141]
[1731023107217,3.1,196.12,196.04,12.24731848]
[1731023107506,3.1,196.12,196.05,1.27501584]
[1731023107810,3.1,196.12,196.03,12.24731848]
[1731023107811,2.5478,196.1,196.03,12.24731848]
[1731023108018,2.5478,196.1,196.04,3.8234399]
[1731023108216,2.5478,196.1,196.05,1.2750399]
[1731023108511,2.5478,196.1,196.04,2.5484]
[1731023108815,2.5478,196.1,196.05,1.27504387]
[1731023109105,2.5478,196.1,196.06,1.27504387]
[1731023109300,2.5478,196.1,196.04,2.5484]
[1731023109505,3.1,196.12,196.05,1.27501613]
[1731023109705,1.2441,196.13,196.06,13.52233461]
[1731023109908,1.2441,196.13,196.08,12.24731848]
[1731023110108,1.2441,196.13,196.09,3.82271297]
[1731023110310,1.2441,196.13,196.09,2.5479]
[1731023111211,1.2441,196.13,196.08,2.548]
[1731023113308,5.6474,196.14,196.08,2.548]
[1731023113708,12.24731848,196.17,196.06,12.24731848]
[1731023114012,2.3796,196.23,196.09,14.79511848]
[1731023114013,2.5471,196.15,196.09,14.79511848]
[1731023114209,3.1,196.14,196.09,14.79511848]
[1731023114809,2.5475,196.13,196.09,12.24731848]
[1731023115014,2.5475,196.13,196.08,14.79521848]
[1731023115209,3.1,196.14,196.08,12.24731848]
[1731023115910,3.1,196.13,196.08,12.24731848]
[1731023116916,3.1,196.13,196.09,2.5478]
[1731023118117,5.6474,196.13,196.07,2.548]
[1731023118327,5.6474,196.13,196.06,12.24731848]
[1731023119006,5.6474,196.13,196.08,2.548]
[1731023119411,2.5475,196.12,196.08,2.548]
[1731023121308,2.5475,196.12,196.1,7.83521856]
[1731023122013,3.1,196.13,196.1,7.83521856]
[1731023123017,3.1,196.13,196.11,7.83521856]
[1731023123427,5.6475,196.13,196.11,7.83521856]
[1731023125029,3.1,196.13,196.11,7.83521856]
[1731023127520,3.1,196.13,196.11,10.38281856]
[1731023127716,7.83521856,196.17,196.11,10.38281856]
[1731023127918,2.5466,196.19,196.16,7.83521856]
[1731023128427,2.88,196.2,196.18,7.83521856]
[1731023129114,2.88,196.2,196.11,2.60901989]
[1731023129315,2.88,196.2,196.04,15.33]
[1731023129515,2.88,196.2,196.13,7.83521856]
[1731023129516,7.83521856,196.19,196.13,7.83521856]
[1731023129922,7.83521856,196.17,196.03,15.33]
[1731023130113,7.83521856,196.17,196.12,7.83521856]
[1731023130319,2.5472,196.14,196.12,7.83521856]
[1731023130520,5.4272,196.14,196.12,7.83521856]
[1731023130715,5.4272,196.14,196.13,7.83521856]
[1731023131018,2.88,196.14,196.13,7.83521856]
[1731023131219,2.88,196.14,196.11,2.5475]
[1731023131417,2.88,196.14,196.11,10.38271856]
[1731023131934,2.88,196.14,196.11,7.83521856]
[1731023131935,5.4273,196.14,196.11,7.83521856]
[1731023133620,2.88,196.14,196.02,7.9776]
[1731023133827,2.88,196.14,195.94,7.6493]
[1731023133828,2.5474,196.13,196.08,7.83521856]
[1731023134016,3.7172,196.13,196.08,7.83521856]
[1731023134629,3.7172,196.13,196.0,15.31]
[1731023134830,3.7172,196.13,196.09,7.83521856]
[1731023135623,2.5477,196.11,196.07,7.83521856]
[1731023135825,7.83521856,196.12,196.07,7.83521856]
[1731023136026,2.5476,196.12,196.07,7.83521856]
[1731023136228,10.26501856,196.13,196.06,2.5483]
[1731023136525,10.26501856,196.13,196.08,7.83521856]
[1731023137024,2.5478,196.1,196.06,2.5483]
[1731023137219,2.5478,196.1,196.08,7.83521856]
[1731023138021,2.5477,196.11,196.08,7.83521856]
[1731023139330,10.26501856,196.13,196.07,7.83521856]
[1731023140428,2.5477,196.11,196.07,7.83521856]
[1731023141329,10.26501856,196.13,196.08,7.83521856]
[1731023141330,2.4298,196.13,196.08,7.83521856]
[1731023141530,2.4298,196.13,196.1,7.83521856]
[1731023142121,4.9773,196.13,196.1,7.83521856]
[1731023142637,8.30366523,196.13,196.1,7.83521856]
[1731023142832,5.87386523,196.13,196.1,7.83521856]
[1731023143034,5.87386523,196.13,196.12,7.83521856]
[1731023143335,2.88,196.14,196.12,7.83521856]
[1731023143533,2.88,196.16,196.12,10.38271856]
[1731023143935,2.547,196.16,196.12,10.38271856]
[1731023144137,5.427,196.16,196.12,10.38271856]
[1731023144628,5.87386523,196.2,196.08,2.5319118]
[1731023144629,2.88,196.17,196.14,7.83521856]
[1731023145741,2.88,196.17,196.14,10.38241856]
[1731023146730,2.88,196.17,196.13,2.5473]
[1731023146731,13.26211856,196.17,196.13,2.5473]
[1731023146934,5.4269,196.17,196.13,10.38251856]
[1731023147336,2.547,196.16,196.13,7.83521856]
[1731023148449,2.547,196.16,196.12,2.5475]
[1731023148645,2.547,196.16,196.13,7.83521856]
[1731023148845,2.5472,196.14,196.02,15.31]
[1731023149047,2.5472,196.14,196.11,7.83521856]
[1731023149448,2.547,196.16,196.12,7.83521856]
[1731023149645,2.88,196.17,196.14,7.83521856]
[1731023151746,5.4269,196.17,196.14,7.83521856]
[1731023151947,2.88,196.17,196.14,7.83521856]
[1731023153550,5.4269,196.17,196.14,7.83521856]
[1731023156456,2.88,196.17,196.16,7.83521856]
[1731023156853,2.5468,196.18,196.16,7.83521856]
[1731023157058,2.78,196.2,196.16,7.83521856]
[1731023157456,2.78,196.2,196.18,7.83521856]
[1731023158056,2.5463,196.22,196.19,7.83521856]
[1731023158360,5.877898,196.24,196.21,7.83521856]
[1731023158559,2.78,196.29,196.23,7.83521856]
[1731023158857,2.5455,196.28,196.25,7.83521856]
[1731023159452,2.78,196.29,196.25,7.83521856]
[1731023159655,5.3254,196.29,196.25,7.83521856]
[1731023160062,2.5455,196.28,196.25,7.83521856]
[1731023160261,5.877898,196.38,196.28,2.5454]
[1731023160462,7.83521856,196.35,196.29,7.83521856]
[1731023160665,7.83521856,196.33,196.22,2.78]
[1731023160858,10.38001856,196.33,196.26,2.5456]
[1731023161054,10.38001856,196.33,196.26,10.38081856]
[1731023161257,10.38001856,196.33,196.26,7.83521856]
[1731023161562,7.83521856,196.27,196.11,31.95144691]
[1731023161761,7.83521856,196.27,196.21,7.83521856]
[1731023162760,10.38081856,196.27,196.21,7.83521856]
[1731023163561,7.83521856,196.27,196.21,7.83521856]
[1731023163764,2.5457,196.26,196.21,7.83521856]
[1731023163954,2.5457,196.26,196.19,2.5465]
[1731023164157,2.5457,196.26,196.22,7.83521856]
[1731023164358,2.78,196.28,196.22,7.83521856]
[1731023164569,5.3255,196.28,196.24,7.83521856]
[1731023165063,2.78,196.28,196.24,7.83521856]
[1731023165969,10.61521856,196.28,196.22,7.83521856]
[1731023166267,13.16071856,196.28,196.22,7.83521856]
[1731023166463,10.61521856,196.28,196.22,7.83521856]
[1731023166666,7.83521856,196.26,196.22,7.83521856]
[1731023167262,10.38091856,196.26,196.22,7.83521856]
[1731023169669,2.78,196.28,196.22,7.83521856]
[1731023169868,2.78,196.28,196.25,7.83521856]
[1731023170167,2.76,196.27,196.25,7.83521856]
[1731023170863,2.76,196.27,196.24,2.5459]
[1731023170864,2.76,196.27,196.13,2.76]
[1731023171066,7.83521856,196.25,196.2,7.83521856]
[1731023171460,2.5459,196.24,196.13,2.58181373]
[1731023171662,2.5459,196.24,196.19,7.83521856]
[1731023171973,7.83521856,196.25,196.13,2.76]
[1731023171974,7.83521856,196.25,196.13,5.34155896]
[1731023172174,7.83521856,196.23,196.18,7.83521856]
[1731023172377,5.3063,196.22,196.18,7.83521856]
[1731023173268,5.3062,196.22,196.18,7.83521856]
[1731023174258,10.38161856,196.21,196.17,7.83521856]
[1731023175270,2.5465,196.2,196.17,7.83521856]
[1731023178469,2.76,196.22,196.18,7.83521856]
[1731023179368,5.3063,196.22,196.18,7.83521856]
[1731023180171,2.5463,196.21,196.18,7.83521856]
[1731023180671,2.5463,196.21,196.14,0.27284]
[1731023180882,7.83521856,196.2,196.14,0.27284]
[1731023181070,7.83521856,196.2,196.16,7.83521856]
[1731023181469,2.5467,196.19,196.16,7.83521856]
[1731023182173,2.76,196.22,196.18,7.83521856]
[1731023182375,2.7,196.21,196.2,7.83521856]
[1731023182677,7.83521856,196.25,196.2,7.83521856]
[1731023182870,2.5462,196.22,196.2,7.83521856]
[1731023183668,2.7,196.24,196.14,0.27284]
[1731023183973,5.1869,196.26,196.22,7.83521856]
[1731023184367,2.5458,196.25,196.22,7.83521856]
[1731023184573,5.1869,196.26,196.22,7.83521856]
[1731023185074,2.5458,196.25,196.22,7.83521856]
[1731023185377,13.02211856,196.26,196.21,7.83521856]
[1731023185571,2.546,196.24,196.21,7.83521856]
[1731023186276,344.0,196.4,196.22,7.83521856]
[1731023186489,7.83521856,196.35,196.3,7.83521856]
[1731023186782,2.5448,196.34,196.3,7.83521856]
[1731023187083,7.83521856,196.33,196.29,7.83521856]
[1731023187280,10.53521856,196.33,196.26,7.83521856]
[1731023187489,7.83521856,196.32,196.28,7.83521856]
[1731023187684,7.83521856,196.3,196.26,7.83521856]
[1731023187987,2.5453,196.29,196.25,7.83521856]
[1731023188188,7.83521856,196.28,196.17,2.7]
[1731023188389,10.53521856,196.28,196.23,7.83521856]
[1731023188684,13.08061856,196.28,196.23,7.83521856]
[1731023189290,5.2454,196.28,196.22,2.5461]
[1731023190789,2.7,196.28,196.25,2.5458]
[1731023191287,1.2067,196.29,196.25,2.5458]
[1731023191288,1.2853,196.3,196.26,2.5457]
[1731023191482,8.55866232,196.32,196.26,2.5457]
[1731023191683,2.7,196.32,196.26,2.5457]
[1731023192383,7.07996232,196.35,196.29,2.5452]
[1731023192585,3.9213,196.35,196.29,2.5452]
[1731023192785,2.5447,196.34,196.29,2.5452]